[Event "17th Memorial Lezcano Montalvo 2025"]
[Site "Gran Canaria"]
[Date "2025.04.16"]
[Round "5.16"]
[White "Sukhodolskyi, Oleksii"]
[Black "Dubkov, Andrej"]
[Result "1/2-1/2"]
[Annotator "RC"]
[ECO "B42"]
[WhiteElo "2070"]
[BlackElo "2307"]
[PlyCount "91"]
[EventDate "2025.04.13"]
[EventType "swiss"]
[EventCountry "ESP"]
[SourceTitle "playchess.com"]
[Source "ChessBase"]
[SourceQuality "1"]
[TimeControl "5400+30"]

1. e4 {[%emt 0:00:12]} c5 {[%emt 0:01:11]} 2. Nf3 {[%emt 0:00:09]} e6 {[%emt 0:00:04]} 3. d4 {[%emt 0:00:06]} cxd4 {[%emt 0:00:03]} 4. Nxd4 {[%emt 0:00:12]} a6 {[%emt 0:00:08]} 5. Bd3 {[%emt 0:00:12]} Qc7 {[%emt 0:00:20]} 6. c4 {[%emt 0:01:18]} Nc6 {[%emt 0:02:36]} 7. Nxc6 {[%emt 0:00:42]} bxc6 {[%emt 0:00:16]} 8. O-O {[%emt 0:02:20]} Nf6 {[%emt 0:00:43]} 9. Nc3 {[%emt 0:01:00]} e5 {[%emt 0:00:50]} 10. Be3 {[%emt 0:06:07]} d6 {[%emt 0:02:59]} 11. h3 {[%emt 0:05:27]} Be7 {[%emt 0:00:16]} 12. Qe2 {[%emt 0:03:32]} O-O {[%emt 0:00:42]} 13. f4 {[%emt 0:08:28]} exf4 {[%emt 0:00:14]} 14. Bxf4 {[%emt 0:00:23]} Nd7 {[%emt 0:00:12]} 15. Qe3 {[%emt 0:11:26]} Qb8 {[%emt 0:24:06]} 16. Rab1 {[%emt 0:06:45]} Bf6 {[%emt 0:02:28]} 17. Ne2 {[%emt 0:10:06]} a5 {[%emt 0:17:11]} 18. Nd4 {[%emt 0:05:43]} Qc7 {[%emt 0:14:05]} 19. Nf3 {[%emt 0:15:10]} Ne5 {[%emt 0:11:04]} 20. Nxe5 {[%emt 0:03:24]} Bxe5 {[%emt 0:00:05]} 21. c5 {[%emt 0:06:15]} dxc5 {[%emt 0:00:07]} 22. Bxe5 {[%emt 0:00:09]} Qxe5 {[%emt 0:21:50]} 23. Rfc1 {[%emt 0:01:31]} Qd4 {[%emt 0:00:00]} 24. Qxd4 {[%emt 0:00:39]} cxd4 {[%emt 0:00:00]} 25. Rxc6 {[%emt 0:01:14]} Be6 {[%emt 0:00:00]} 26. Bc4 {[%emt 0:01:28]} Rac8 {[%emt 0:00:00]} 27. Rxe6 {[%emt 0:03:23]} Rxc4 {[%emt 0:00:00]} 28. Rd6 {[%emt 0:00:05]} g6 {[%emt 0:00:00]} 29. b3 {[%emt 0:01:20]} Rc2 {[%emt 0:00:00]} 30. Rxd4 {[%emt 0:00:07]} Rfc8 {[%emt 0:00:00]} 31. Rbd1 {[%emt 0:04:10]} Rxa2 {[%emt 0:00:00]} 32. Rd8+ {[%emt 0:00:18]} Rxd8 {[%emt 0:00:00]} 33. Rxd8+ {[%emt 0:00:05]} Kg7 {[%emt 0:00:00]} 34. e5 {[%emt 0:00:53]} h5 {[%emt 0:00:00]} 35. h4 {[%emt 0:00:34]} a4 {[%emt 0:00:00]} 36. bxa4 {[%emt 0:00:31]} Rxa4 {[%emt 0:00:00]} 37. g3 {[%emt 0:00:08]} Re4 {[%emt 0:00:00]} 38. Re8 {[%emt 0:00:26]} Re2 {[%emt 0:00:00]} 39. Kf1 {[%emt 0:00:25]} Ra2 {[%emt 0:00:00]} 40. Kg1 {[%emt 0:00:41]} Ra6 {[%emt 0:00:40]} 41. Kg2 {[%emt 0:00:56]} Ra2+ {[%emt 0:04:59]} 42. Kg1 {[%emt 0:00:17]} g5 {[%emt 0:01:34]} 43. hxg5 {[%emt 0:00:06]} Kg6 {[%emt 0:00:36]} 44. e6 {[%emt 0:00:34]} fxe6 {[%emt 0:00:07]} 45. Rxe6+ {[%emt 0:00:07]} Kxg5 {[%emt 0:00:04]} 46. Re4 {[%emt 0:00:12]} 1/2-1/2

[Event "17th Memorial Lezcano Montalvo 2025"]
[Site "Gran Canaria"]
[Date "2025.04.16"]
[Round "5.17"]
[White "Meneses Gonzalez, Kevin Moises"]
[Black "Ramirez Maillo, Cristian"]
[Result "1-0"]
[Annotator "RC"]
[ECO "A49"]
[WhiteElo "2307"]
[BlackElo "2106"]
[PlyCount "53"]
[EventDate "2025.04.13"]
[EventType "swiss"]
[EventCountry "ESP"]
[SourceTitle "playchess.com"]
[Source "ChessBase"]
[SourceQuality "1"]
[TimeControl "5400+30"]

1. Nf3 {[%emt 0:00:03]} Nf6 {[%emt 0:00:07]} 2. g3 {[%emt 0:00:03]} g6 {[%emt 0:00:07]} 3. b3 {[%emt 0:00:02]} Bg7 {[%emt 0:00:07]} 4. Bb2 {[%emt 0:00:02]} O-O {[%emt 0:00:08]} 5. Bg2 {[%emt 0:00:03]} d6 {[%emt 0:00:12]} 6. d4 {[%emt 0:00:02]} a5 {[%emt 0:00:20]} 7. a4 {[%emt 0:00:03]} c6 {[%emt 0:03:04]} 8. O-O {[%emt 0:00:35]} Nbd7 {[%emt 0:00:10]} 9. Nbd2 {[%emt 0:00:46]} Re8 {[%emt 0:02:51]} 10. e4 {[%emt 0:00:19]} e5 {[%emt 0:03:03]} 11. Re1 {[%emt 0:03:54]} Qc7 {[%emt 0:03:11]} 12. Nc4 {[%emt 0:02:07]} Nxe4 {[%emt 0:15:41]} 13. Rxe4 {[%emt 0:01:00]} d5 {[%emt 0:00:05]} 14. Rxe5 {[%emt 0:00:01]} Rf8 {[%emt 0:02:17]} 15. Ne3 {[%emt 0:04:24]} Nxe5 {[%emt 0:00:05]} 16. Nxe5 {[%emt 0:03:00]} f6 {[%emt 0:01:41]} 17. Nd3 {[%emt 0:00:08]} Be6 {[%emt 0:02:08]} 18. c4 {[%emt 0:06:09]} dxc4 {[%emt 0:00:33]} 19. bxc4 {[%emt 0:00:03]} Rad8 {[%emt 0:01:33]} 20. d5 {[%emt 0:00:03]} Bf7 {[%emt 0:00:27]} 21. Qb3 {[%emt 0:00:37]} Rfe8 {[%emt 0:01:23]} 22. Bd4 {[%emt 0:01:29]} f5 {[%emt 0:01:59]} 23. Bxg7 {[%emt 0:04:50]} Kxg7 {[%emt 0:00:06]} 24. Rb1 {[%emt 0:00:01]} Re7 {[%emt 0:00:23]} 25. Nc5 {[%emt 0:02:37]} cxd5 {[%emt 0:02:05]} 26. Nxb7 {[%emt 0:02:50]} Rde8 {[%emt 0:10:11]} 27. cxd5 {[%emt 0:01:30]} 1-0

[Event "17th Memorial Lezcano Montalvo 2025"]
[Site "Gran Canaria"]
[Date "2025.04.16"]
[Round "5.18"]
[White "Castellanos Gomez, Alejandro"]
[Black "Blanco Garcia Bajo, David"]
[Result "1-0"]
[Annotator "RC"]
[ECO "E14"]
[WhiteElo "2267"]
[BlackElo "2098"]
[PlyCount "77"]
[EventDate "2025.04.13"]
[EventType "swiss"]
[EventCountry "ESP"]
[SourceTitle "playchess.com"]
[Source "ChessBase"]
[SourceQuality "1"]
[TimeControl "5400+30"]

1. d4 {[%emt 0:00:02]} e6 {[%emt 0:00:05]} 2. Nf3 {[%emt 0:00:06]} Nf6 {[%emt 0:00:11]} 3. e3 {[%emt 0:00:06]} b6 {[%emt 0:00:21]} 4. Bd3 {[%emt 0:00:06]} Bb7 {[%emt 0:00:06]} 5. O-O {[%emt 0:00:07]} d5 {[%emt 0:00:05]} 6. b3 {[%emt 0:00:05]} Bd6 {[%emt 0:00:06]} 7. Bb2 {[%emt 0:00:08]} O-O {[%emt 0:00:30]} 8. c4 {[%emt 0:00:05]} Ne4 {[%emt 0:03:39]} 9. Nc3 {[%emt 0:00:54]} a6 {[%emt 0:09:29]} 10. Rc1 {[%emt 0:01:15]} Nd7 {[%emt 0:01:28]} 11. Qc2 {[%emt 0:11:48]} f5 {[%emt 0:00:40]} 12. cxd5 {[%emt 0:01:00]} exd5 {[%emt 0:00:33]} 13. Ne2 {[%emt 0:00:35]} Qe7 {[%emt 0:06:58]} 14. Ne5 {[%emt 0:04:16]} c5 {[%emt 0:16:09]} 15. Nxd7 {[%emt 0:09:35]} Qxd7 {[%emt 0:00:55]} 16. f3 {[%emt 0:00:37]} Rac8 {[%emt 0:10:56]} 17. fxe4 {[%emt 0:11:42]} fxe4 {[%emt 0:00:13]} 18. Rxf8+ {[%emt 0:01:10]} Rxf8 {[%emt 0:02:25]} 19. Bxe4 {[%emt 0:05:40]} dxe4 {[%emt 0:00:30]} 20. dxc5 {[%emt 0:01:45]} Bxc5 {[%emt 0:01:59]} 21. Bd4 {[%emt 0:00:44]} Rc8 {[%emt 0:08:25]} 22. Qb2 {[%emt 0:00:23]} Qd6 {[%emt 0:12:52]} 23. Bxc5 {[%emt 0:02:25]} Rxc5 {[%emt 0:00:22]} 24. Rxc5 {[%emt 0:03:09]} Qxc5 {[%emt 0:00:32]} 25. Qd2 {[%emt 0:00:23]} Qd5 {[%emt 0:00:57]} 26. Nd4 {[%emt 0:00:41]} a5 {[%emt 0:04:21]} 27. Qc3 {[%emt 0:01:48]} Ba6 {[%emt 0:02:02]} 28. Qc7 {[%emt 0:04:42]} Qc5 {[%emt 0:00:45]} 29. Qd8+ {[%emt 0:00:51]} Kf7 {[%emt 0:00:01]} 30. Qd7+ {[%emt 0:00:57]} Qe7 {[%emt 0:01:01]} 31. Qd5+ {[%emt 0:00:35]} Kg6 {[%emt 0:00:46]} 32. Qf5+ {[%emt 0:17:37]} Kh6 {[%emt 0:00:06]} 33. Qf4+ {[%emt 0:01:32]} Kg6 {[%emt 0:01:58]} 34. Nc6 {[%emt 0:01:47]} Qe6 {[%emt 0:04:03]} 35. Ne5+ {[%emt 0:01:26]} Kh5 {[%emt 0:00:02]} 36. Qxe4 {[%emt 0:09:23]} g6 {[%emt 0:00:14]} 37. Qf4 {[%emt 0:02:18]} g5 {[%emt 0:02:41]} 38. g4+ {[%emt 0:00:58]} Kh6 {[%emt 0:00:09]} 39. Qf8# {[%emt 0:00:06]} 1-0

[Event "17th Memorial Lezcano Montalvo 2025"]
[Site "Gran Canaria"]
[Date "2025.04.16"]
[Round "5.19"]
[White "Moreno Diepa, Diego"]
[Black "Cruz Ramirez, Nauzet"]
[Result "1-0"]
[Annotator "RC"]
[ECO "B12"]
[WhiteElo "2243"]
[BlackElo "2076"]
[PlyCount "33"]
[EventDate "2025.04.13"]
[EventType "swiss"]
[EventCountry "ESP"]
[SourceTitle "playchess.com"]
[Source "ChessBase"]
[SourceQuality "1"]
[TimeControl "5400+30"]

1. e4 {[%emt 0:00:03]} c6 {[%emt 0:00:07]} 2. d4 {[%emt 0:00:07]} d5 {[%emt 0:00:06]} 3. e5 {[%emt 0:00:05]} c5 {[%emt 0:00:06]} 4. dxc5 {[%emt 0:00:04]} e6 {[%emt 0:00:12]} 5. Qh5 {[%emt 0:00:07]} Bxc5 {[%emt 0:08:03]} 6. Bd3 {[%emt 0:00:08]} Nd7 {[%emt 0:09:42]} 7. Nf3 {[%emt 0:01:17]} g6 {[%emt 0:02:25]} 8. Qh3 {[%emt 1:32:39]} Bf8 {[%emt 0:12:37]} 9. O-O {[%emt 0:00:00]} Bg7 {[%emt 0:00:25]} 10. Re1 {[%emt 0:00:00]} Ne7 {[%emt 0:03:42]} 11. Nc3 {[%emt 0:00:00]} a6 {[%emt 0:00:08]} 12. Bf4 {[%emt 0:00:00]} h6 {[%emt 0:22:20]} 13. Rad1 {[%emt 0:00:00]} Nc6 {[%emt 0:02:03]} 14. Bxg6 {[%emt 0:00:00]} fxg6 {[%emt 0:00:19]} 15. Qxe6+ {[%emt 0:00:00]} Ne7 {[%emt 0:00:03]} 16. Nxd5 {[%emt 0:00:00]} Kf8 {[%emt 0:04:40]} 17. Nf6 {[%emt 0:00:00]} 1-0

[Event "17th Memorial Lezcano Montalvo 2025"]
[Site "Gran Canaria"]
[Date "2025.04.16"]
[Round "5.20"]
[White "Calzetta Ruiz, Monica"]
[Black "Sosa Suarez, Carla Cristina"]
[Result "1-0"]
[Annotator "RC"]
[ECO "B13"]
[WhiteElo "2224"]
[BlackElo "2056"]
[PlyCount "67"]
[EventDate "2025.04.13"]
[EventType "swiss"]
[EventCountry "ESP"]
[SourceTitle "playchess.com"]
[Source "ChessBase"]
[SourceQuality "1"]
[TimeControl "5400+30"]

1. e4 {[%emt 0:01:20]} c6 {[%emt 0:00:03]} 2. d4 {[%emt 0:00:07]} d5 {[%emt 0:00:04]} 3. exd5 {[%emt 0:00:11]} cxd5 {[%emt 0:00:05]} 4. c4 {[%emt 0:00:07]} Nf6 {[%emt 0:00:06]} 5. Nc3 {[%emt 0:00:08]} Nc6 {[%emt 0:00:19]} 6. Nf3 {[%emt 0:01:14]} a6 {[%emt 0:00:03]} 7. cxd5 {[%emt 0:05:32]} Nxd5 {[%emt 0:00:15]} 8. Bc4 {[%emt 0:02:08]} Nb6 {[%emt 0:02:41]} 9. Bb3 {[%emt 0:00:30]} e6 {[%emt 0:00:22]} 10. O-O {[%emt 0:00:34]} Be7 {[%emt 0:01:28]} 11. Re1 {[%emt 0:05:51]} O-O {[%emt 0:01:26]} 12. Be3 {[%emt 0:08:42]} Bd7 {[%emt 0:10:08]} 13. Rc1 {[%emt 0:28:28]} Rc8 {[%emt 0:05:50]} 14. a3 {[%emt 0:06:03]} Na5 {[%emt 0:05:46]} 15. Ba2 {[%emt 0:02:38]} Nac4 {[%emt 0:02:04]} 16. Qe2 {[%emt 0:03:57]} Bc6 {[%emt 0:16:14]} 17. d5 {[%emt 0:00:54]} Nxe3 {[%emt 0:19:04]} 18. dxc6 {[%emt 0:01:12]} Nf5 {[%emt 0:06:07]} 19. cxb7 {[%emt 0:00:16]} Rc5 {[%emt 0:03:06]} 20. Qxa6 {[%emt 0:02:44]} Qc7 {[%emt 0:00:52]} 21. Nb5 {[%emt 0:06:08]} Qf4 {[%emt 0:03:12]} 22. Rxc5 {[%emt 0:02:28]} Bxc5 {[%emt 0:00:05]} 23. b4 {[%emt 0:00:08]} Nh4 {[%emt 0:05:11]} 24. bxc5 {[%emt 0:00:37]} Nxg2 {[%emt 0:02:59]} 25. Kxg2 {[%emt 0:01:16]} Qg4+ {[%emt 0:00:04]} 26. Kf1 {[%emt 0:00:09]} Qxf3 {[%emt 0:01:09]} 27. Qxb6 {[%emt 0:06:48]} Qh1+ {[%emt 0:00:05]} 28. Ke2 {[%emt 0:00:07]} Qe4+ {[%emt 0:00:20]} 29. Kd2 {[%emt 0:00:18]} Qf4+ {[%emt 0:00:34]} 30. Re3 {[%emt 0:00:46]} Qxf2+ {[%emt 0:00:17]} 31. Re2 {[%emt 0:00:16]} Qf4+ {[%emt 0:00:17]} 32. Kc2 {[%emt 0:00:14]} Qf5+ {[%emt 0:00:34]} 33. Kb2 {[%emt 0:00:25]} Qf6+ {[%emt 0:02:43]} 34. Nc3 {[%emt 0:00:06]} 1-0

[Event "17th Memorial Lezcano Montalvo 2025"]
[Site "Gran Canaria"]
[Date "2025.04.16"]
[Round "5.21"]
[White "Fernandez Lozano, Francesc"]
[Black "Fiorito, Fabian"]
[Result "0-1"]
[Annotator "RC"]
[ECO "B43"]
[WhiteElo "2042"]
[BlackElo "2268"]
[PlyCount "94"]
[EventDate "2025.04.13"]
[EventType "swiss"]
[EventCountry "ESP"]
[SourceTitle "playchess.com"]
[Source "ChessBase"]
[SourceQuality "1"]
[TimeControl "5400+30"]

1. e4 {[%emt 0:00:05]} c5 {[%emt 0:01:00]} 2. Nc3 {[%emt 0:00:06]} e6 {[%emt 0:01:10]} 3. Nf3 {[%emt 0:00:32]} a6 {[%emt 0:00:41]} 4. d4 {[%emt 0:00:50]} cxd4 {[%emt 0:00:06]} 5. Nxd4 {[%emt 0:00:05]} Qc7 {[%emt 0:00:33]} 6. g3 {[%emt 0:01:33]} Bb4 {[%emt 0:03:42]} 7. Nde2 {[%emt 0:01:45]} Be7 {[%emt 0:01:06]} 8. Bg2 {[%emt 0:00:58]} d6 {[%emt 0:00:15]} 9. a4 {[%emt 0:05:53]} Nc6 {[%emt 0:01:13]} 10. Nd4 {[%emt 0:02:57]} Nf6 {[%emt 0:00:42]} 11. Nxc6 {[%emt 0:04:11]} bxc6 {[%emt 0:01:03]} 12. a5 {[%emt 0:01:12]} O-O {[%emt 0:01:42]} 13. O-O {[%emt 0:00:44]} Bb7 {[%emt 0:01:39]} 14. Re1 {[%emt 0:06:15]} Nd7 {[%emt 0:07:26]} 15. Be3 {[%emt 0:08:38]} c5 {[%emt 0:01:04]} 16. Qd2 {[%emt 0:03:27]} Ne5 {[%emt 0:01:50]} 17. Qe2 {[%emt 0:04:30]} Nc6 {[%emt 0:00:29]} 18. Bd2 {[%emt 0:03:38]} Bf6 {[%emt 0:05:32]} 19. Na4 {[%emt 0:07:49]} Nd4 {[%emt 0:01:53]} 20. Qd1 {[%emt 0:00:55]} Rad8 {[%emt 0:01:53]} 21. f4 {[%emt 0:04:42]} d5 {[%emt 0:02:38]} 22. e5 {[%emt 0:01:08]} Be7 {[%emt 0:01:05]} 23. Nb6 {[%emt 0:06:19]} Nf5 {[%emt 0:01:28]} 24. Kh1 {[%emt 0:10:42]} g6 {[%emt 0:02:44]} 25. Rc1 {[%emt 0:02:07]} c4 {[%emt 0:02:58]} 26. Qe2 {[%emt 0:01:44]} h5 {[%emt 0:00:50]} 27. Qf3 {[%emt 0:01:33]} Kg7 {[%emt 0:02:35]} 28. b4 {[%emt 0:01:21]} h4 {[%emt 0:05:24]} 29. Kg1 {[%emt 0:00:59]} h3 {[%emt 0:05:28]} 30. Bh1 {[%emt 0:00:06]} Nd4 {[%emt 0:01:26]} 31. Qf1 {[%emt 0:05:38]} c3 {[%emt 0:01:30]} 32. Be3 {[%emt 0:00:41]} Nf5 {[%emt 0:00:30]} 33. Bc5 {[%emt 0:03:31]} Bxc5+ {[%emt 0:07:20]} 34. bxc5 {[%emt 0:00:02]} Qxc5+ {[%emt 0:00:05]} 35. Qf2 {[%emt 0:00:03]} Qc7 {[%emt 0:00:44]} 36. g4 {[%emt 0:11:51]} Nh6 {[%emt 0:00:35]} 37. Bf3 {[%emt 0:00:00]} d4 {[%emt 0:00:58]} 38. Red1 {[%emt 0:00:00]} Bxf3 {[%emt 0:04:54]} 39. Qxf3 {[%emt 0:00:00]} d3 {[%emt 0:05:48]} 40. cxd3 {[%emt 0:00:00]} Rd4 {[%emt 0:04:44]} 41. Qe3 {[%emt 0:00:00]} Rfd8 {[%emt 0:02:43]} 42. g5 {[%emt 0:00:00]} Nf5 {[%emt 0:00:42]} 43. Qf3 {[%emt 0:00:23]} Qc5 {[%emt 0:03:58]} 44. Qf2 {[%emt 0:00:59]} Qc6 {[%emt 0:01:05]} 45. Rc2 {[%emt 0:00:52]} Rxd3 {[%emt 0:00:30]} 46. Rxd3 {[%emt 0:01:00]} Rxd3 {[%emt 0:00:01]} 47. Qe2 {[%emt 0:01:40]} Qc5+ {[%emt 0:01:18]} 0-1

[Event "17th Memorial Lezcano Montalvo 2025"]
[Site "Gran Canaria"]
[Date "2025.04.16"]
[Round "5.22"]
[White "Estremera Panos, Sergio"]
[Black "Ludishev, Artem"]
[Result "1-0"]
[Annotator "RC"]
[ECO "E41"]
[WhiteElo "2195"]
[BlackElo "1874"]
[PlyCount "89"]
[EventDate "2025.04.13"]
[EventType "swiss"]
[EventCountry "ESP"]
[SourceTitle "playchess.com"]
[Source "ChessBase"]
[SourceQuality "1"]
[TimeControl "5400+30"]

1. Nf3 {[%emt 0:02:43]} Nf6 {[%emt 0:00:20]} 2. c4 {[%emt 0:00:55]} e6 {[%emt 0:00:18]} 3. d4 {[%emt 0:01:22]} Bb4+ {[%emt 0:01:21]} 4. Nc3 {[%emt 0:00:39]} c5 {[%emt 0:00:41]} 5. e3 {[%emt 0:00:35]} Nc6 {[%emt 0:00:25]} 6. Bd3 {[%emt 0:01:21]} Bxc3+ {[%emt 0:00:59]} 7. bxc3 {[%emt 0:00:09]} d6 {[%emt 0:00:14]} 8. e4 {[%emt 0:02:34]} e5 {[%emt 0:02:02]} 9. d5 {[%emt 0:00:14]} Ne7 {[%emt 0:00:06]} 10. Nh4 {[%emt 0:00:19]} h6 {[%emt 0:01:09]} 11. h3 {[%emt 0:00:31]} Ng6 {[%emt 0:06:50]} 12. Nf5 {[%emt 0:01:04]} Bxf5 {[%emt 0:03:54]} 13. exf5 {[%emt 0:00:08]} Nh4 {[%emt 0:18:26]} 14. O-O {[%emt 0:01:53]} e4 {[%emt 0:17:50]} 15. Re1 {[%emt 0:02:32]} O-O {[%emt 0:00:49]} 16. Bxe4 {[%emt 0:00:49]} Nxe4 {[%emt 0:00:18]} 17. Rxe4 {[%emt 0:00:03]} Nxf5 {[%emt 0:00:10]} 18. Qd3 {[%emt 0:10:09]} Ne7 {[%emt 0:04:04]} 19. Rb1 {[%emt 0:08:32]} b6 {[%emt 0:01:24]} 20. Bd2 {[%emt 0:00:46]} Ng6 {[%emt 0:00:24]} 21. Rbe1 {[%emt 0:00:17]} Qd7 {[%emt 0:05:12]} 22. Qg3 {[%emt 0:01:05]} Rad8 {[%emt 0:04:02]} 23. f4 {[%emt 0:25:00]} Kh7 {[%emt 0:02:13]} 24. Qe3 {[%emt 0:04:06]} Qf5 {[%emt 0:12:47]} 25. g4 {[%emt 0:04:17]} Qf6 {[%emt 0:00:09]} 26. Re2 {[%emt 0:00:16]} h5 {[%emt 0:02:17]} 27. Be1 {[%emt 0:01:10]} h4 {[%emt 0:06:36]} 28. Rf2 {[%emt 0:05:31]} Rd7 {[%emt 0:02:22]} 29. f5 {[%emt 0:03:21]} Ne5 {[%emt 0:00:32]} 30. g5 {[%emt 0:00:16]} Qd8 {[%emt 0:00:55]} 31. Qf4 {[%emt 0:07:02]} Re8 {[%emt 0:02:20]} 32. Rfe2 {[%emt 0:02:34]} Rh8 {[%emt 0:01:40]} 33. Bxh4 {[%emt 0:02:09]} Kg8 {[%emt 0:00:20]} 34. Kg2 {[%emt 0:00:20]} g6 {[%emt 0:00:37]} 35. f6 {[%emt 0:02:04]} b5 {[%emt 0:00:25]} 36. cxb5 {[%emt 0:02:13]} Qa5 {[%emt 0:00:16]} 37. c4 {[%emt 0:00:49]} Qc3 {[%emt 0:00:20]} 38. Bg3 {[%emt 0:00:47]} a6 {[%emt 0:01:09]} 39. Qe3 {[%emt 0:01:57]} Qxe3 {[%emt 0:02:27]} 40. R2xe3 {[%emt 0:00:09]} axb5 {[%emt 0:00:08]} 41. cxb5 {[%emt 0:00:36]} Ra7 {[%emt 0:00:38]} 42. a4 {[%emt 0:00:28]} c4 {[%emt 0:00:32]} 43. Bxe5 {[%emt 0:00:21]} dxe5 {[%emt 0:00:04]} 44. Rxc4 {[%emt 0:00:25]} Kh7 {[%emt 0:00:15]} 45. b6 {[%emt 0:01:38]} 1-0

[Event "17th Memorial Lezcano Montalvo 2025"]
[Site "Gran Canaria"]
[Date "2025.04.16"]
[Round "5.23"]
[White "Pinilla Sanchez, Josep A."]
[Black "Rodriguez Lopez, David"]
[Result "0-1"]
[Annotator "RC"]
[ECO "A14"]
[WhiteElo "1827"]
[BlackElo "2182"]
[PlyCount "96"]
[EventDate "2025.04.13"]
[EventType "swiss"]
[EventCountry "ESP"]
[SourceTitle "playchess.com"]
[Source "ChessBase"]
[SourceQuality "1"]
[TimeControl "5400+30"]

1. Nf3 {[%emt 0:00:05]} Nf6 {[%emt 0:00:13]} 2. g3 {[%emt 0:00:11]} d5 {[%emt 0:00:12]} 3. Bg2 {[%emt 0:00:17]} e6 {[%emt 0:00:18]} 4. O-O {[%emt 0:00:43]} Be7 {[%emt 0:01:29]} 5. c4 {[%emt 0:01:04]} O-O {[%emt 0:00:28]} 6. b3 {[%emt 0:00:57]} b6 {[%emt 0:00:44]} 7. Bb2 {[%emt 0:01:35]} Bb7 {[%emt 0:00:20]} 8. Nc3 {[%emt 0:01:52]} c5 {[%emt 0:04:10]} 9. cxd5 {[%emt 0:01:11]} Nxd5 {[%emt 0:01:29]} 10. Nxd5 {[%emt 0:04:19]} Bxd5 {[%emt 0:00:53]} 11. d4 {[%emt 0:01:18]} cxd4 {[%emt 0:11:53]} 12. Qxd4 {[%emt 0:03:59]} Bf6 {[%emt 0:00:11]} 13. Qd2 {[%emt 0:00:04]} Nd7 {[%emt 0:06:57]} 14. Rac1 {[%emt 0:12:32]} Nc5 {[%emt 0:04:34]} 15. Bxf6 {[%emt 0:02:19]} Qxf6 {[%emt 0:00:17]} 16. Qd4 {[%emt 0:01:51]} Qe7 {[%emt 0:05:02]} 17. Ne5 {[%emt 0:08:01]} Rad8 {[%emt 0:05:55]} 18. Qf4 {[%emt 0:08:53]} Bxg2 {[%emt 0:03:56]} 19. Kxg2 {[%emt 0:00:06]} Qd6 {[%emt 0:00:21]} 20. Nf3 {[%emt 0:10:36]} Qxf4 {[%emt 0:16:00]} 21. gxf4 {[%emt 0:00:17]} f6 {[%emt 0:00:57]} 22. Rfd1 {[%emt 0:01:39]} Kf7 {[%emt 0:01:56]} 23. Nd4 {[%emt 0:01:59]} a5 {[%emt 0:00:20]} 24. e3 {[%emt 0:05:43]} Rd7 {[%emt 0:02:26]} 25. Nb5 {[%emt 0:03:12]} Rfd8 {[%emt 0:02:18]} 26. Rxd7+ {[%emt 0:00:49]} Rxd7 {[%emt 0:00:01]} 27. Nd4 {[%emt 0:00:28]} h6 {[%emt 0:05:57]} 28. h4 {[%emt 0:02:14]} Rd6 {[%emt 0:00:19]} 29. Rc2 {[%emt 0:01:00]} Kg6 {[%emt 0:00:24]} 30. Nb5 {[%emt 0:03:40]} Rd1 {[%emt 0:01:50]} 31. Nd4 {[%emt 0:02:46]} Nd3 {[%emt 0:01:20]} 32. Nf3 {[%emt 0:02:24]} Nb4 {[%emt 0:02:30]} 33. Rb2 {[%emt 0:01:24]} Ra1 {[%emt 0:02:24]} 34. a4 {[%emt 0:00:37]} Nd3 {[%emt 0:03:14]} 35. Rd2 {[%emt 0:02:24]} Nc5 {[%emt 0:00:00]} 36. Rb2 {[%emt 0:00:33]} Rd1 {[%emt 0:00:39]} 37. Nd2 {[%emt 0:05:08]} Nd3 {[%emt 0:02:41]} 38. Ra2 {[%emt 0:00:30]} Nb4 {[%emt 0:00:30]} 39. Rb2 {[%emt 0:00:16]} Kh5 {[%emt 0:00:26]} 40. Nc4 {[%emt 0:01:01]} Kxh4 {[%emt 0:00:43]} 41. Nxb6 {[%emt 0:00:06]} Nd3 {[%emt 0:00:06]} 42. Ra2 {[%emt 0:00:52]} Rb1 {[%emt 0:00:47]} 43. Nc4 {[%emt 0:00:46]} Ne1+ {[%emt 0:00:08]} 44. Kf1 {[%emt 0:01:34]} Nf3+ {[%emt 0:00:27]} 45. Ke2 {[%emt 0:00:45]} Kg4 {[%emt 0:00:03]} 46. Nxa5 {[%emt 0:03:25]} h5 {[%emt 0:00:04]} 47. Nc4 {[%emt 0:00:21]} h4 {[%emt 0:00:13]} 48. a5 {[%emt 0:00:03]} h3 {[%emt 0:16:25]} 0-1

[Event "17th Memorial Lezcano Montalvo 2025"]
[Site "Gran Canaria"]
[Date "2025.04.16"]
[Round "5.24"]
[White "Garcia Brion, Eduardo"]
[Black "De La Cruz Perez, Carlos"]
[Result "1/2-1/2"]
[Annotator "RC"]
[ECO "C10"]
[WhiteElo "2171"]
[BlackElo "1835"]
[PlyCount "55"]
[EventDate "2025.04.13"]
[EventType "swiss"]
[EventCountry "ESP"]
[SourceTitle "playchess.com"]
[Source "ChessBase"]
[SourceQuality "1"]
[TimeControl "5400+30"]

1. e4 {[%emt 0:00:01]} e6 {[%emt 0:00:08]} 2. d4 {[%emt 0:00:04]} d5 {[%emt 0:00:04]} 3. Nd2 {[%emt 0:00:04]} dxe4 {[%emt 0:00:06]} 4. Nxe4 {[%emt 0:00:04]} Nd7 {[%emt 0:00:07]} 5. Nf3 {[%emt 0:00:08]} Ngf6 {[%emt 0:00:06]} 6. Bd3 {[%emt 0:00:41]} c5 {[%emt 0:00:30]} 7. Be3 {[%emt 0:00:16]} Nxe4 {[%emt 0:00:09]} 8. Bxe4 {[%emt 0:00:04]} Nf6 {[%emt 0:00:06]} 9. Bd3 {[%emt 0:00:06]} Qc7 {[%emt 0:00:06]} 10. Qe2 {[%emt 0:00:17]} a6 {[%emt 0:00:16]} 11. O-O {[%emt 0:09:58]} b6 {[%emt 0:01:44]} 12. c3 {[%emt 0:07:16]} Bd6 {[%emt 0:03:04]} 13. dxc5 {[%emt 0:04:05]} Bxc5 {[%emt 0:02:25]} 14. Bxc5 {[%emt 0:00:15]} Qxc5 {[%emt 0:00:28]} 15. Qe5 {[%emt 0:03:43]} Qxe5 {[%emt 0:14:47]} 16. Nxe5 {[%emt 0:00:06]} O-O {[%emt 0:01:17]} 17. Rfd1 {[%emt 0:02:38]} Bb7 {[%emt 0:11:49]} 18. Nc4 {[%emt 0:02:10]} b5 {[%emt 0:00:32]} 19. Na5 {[%emt 0:02:31]} Bd5 {[%emt 0:01:23]} 20. c4 {[%emt 0:00:39]} bxc4 {[%emt 0:00:28]} 21. Nxc4 {[%emt 0:00:08]} Rfb8 {[%emt 0:03:29]} 22. b3 {[%emt 0:00:13]} a5 {[%emt 0:01:10]} 23. Ne3 {[%emt 0:00:39]} a4 {[%emt 0:01:05]} 24. Nxd5 {[%emt 0:00:28]} Nxd5 {[%emt 0:00:09]} 25. Be4 {[%emt 0:06:57]} axb3 {[%emt 0:00:23]} 26. axb3 {[%emt 0:00:07]} Rxa1 {[%emt 0:00:27]} 27. Rxa1 {[%emt 0:00:04]} g6 {[%emt 0:00:09]} 28. Bxd5 {[%emt 1:00:48]} 1/2-1/2